Workbook

Sheet меню школы 1 неделя
A1: Согласовано | L1: Утверждаю
L2: Директор ООО " ГРАНД "
L3: Васянина Ю.С.
B5: Примерное недельное меню для обучающихся в общеобразовательных организациях
A6: 1 день 1 неделя
A7: 1-4классы
A8: Рецептура | B8: Наименование блюд | D8: Выход,г | E8: Белки,г | F8: Жиры,г | G8: Углеводы,г | H8: Калорийность,ккал | I8: Вит.В1,мг | J8: Вит.С,мг | K8: Вит.А,мг | L8: Вит.Е,мг | M8: Са,мг | N8: Р,мг | O8: Mg,мг | P8: Fe,мг
A9: ДеЛи,2012-584с,№62 | B9: Салат из моркови сахаром | D9: 60 | E9: 0.516 | F9: 2.132 | G9: 4.450 | H9: 50 | I9: 0.029 | J9: 13.430 | K9: 0.000 | L9: 0.234 | M9: 23.302 | N9: 10.850 | O9: 2.468 | P9: 0.158
A10: Дели 2015 №266 | B10: Бифштекс рубленый | D10: 90 | E10: 17.460 | F10: 21.480 | G10: 0.400 | H10: 265 | I10: 0.130 | J10: 0.110 | K10: 0.000 | L10: 1.343 | M10: 20.470 | N10: 160.260 | O10: 18.900 | P10: 2.530
A11: 303 сбор рецептур Дели 2015 | B11: Каша вязкая (гречневая) | D11: 150 | E11: 6.662 | F11: 9.024 | G11: 34.000 | H11: 170 | I11: 0.292 | J11: 0.000 | K11: 0.000 | L11: 0.518 | M11: 37.352 | N11: 170.553 | O11: 44.550 | P11: 1.101
A12: ДеЛи,2015-544с,№378 | B12: Чай с молоком | D12: 150/50/15 | E12: 1.520 | F12: 1.350 | G12: 15.900 | H12: 81 | I12: 0.040 | J12: 1.330 | K12: 0.160 | L12: 0.000 | M12: 136.600 | N12: 92.800 | O12: 5.400 | P12: 0.110
B13: Хлеб ржанл- пшенич.,1с | D13: 20 | E13: 1.000 | F13: 0.200 | G13: 9.000 | H13: 44 | I13: 0.014 | J13: 0.000 | K13: 0.000 | L13: 0.108 | M13: 2.760 | N13: 12.720 | O13: 3.000 | P13: 0.372
B14: Хлеб белый,1с | D14: 30 | E14: 2.280 | F14: 0.240 | G14: 14.760 | H14: 71 | I14: 0.033 | L14: 0.330 | M14: 6.000 | N14: 19.500 | O14: 4.200 | P14: 0.330
E15: =SUM(E9:E14) -> 29.438 | F15: 34.426 | G15: 78.510 | H15: 681 | I15: 0.538 | J15: 14.870 | K15: 0.160 | L15: 2.533 | M15: 226.484 | N15: 466.683 | O15: 78.518 | P15: 4.601
A16: 5-11классы
A17: 303 Сбор. Рец дели 2015 | B17: Каша вязкая (гречневая) | D17: 180 | E17: 7.99 | F17: 10.82 | G17: 40.80 | H17: 203.99 | I17: 0.35 | J17: 0.00 | K17: 0.00 | L17: 0.62 | M17: 44.82 | N17: 204.66 | O17: 53.46 | P17: 1.32
A18: Дели 2015 "266 | B18: Бифштекс рубленый | D18: 100 | E18: 19.380 | F18: 23.880 | G18: 0.440 | H18: 294 | I18: 0.140 | J18: 0.120 | K18: 0.000 | L18: 1.490 | M18: 22.740 | N18: 178.060 | O18: 21.000 | P18: 2.810
A19: Дели 2015 378 | B19: Чай с молоком | D19: 150/50/15 | E19: 1.52 | F19: 1.35 | G19: 15.90 | H19: 81.00 | I19: 0.04 | J19: 1.33 | K19: 0.16 | L19: 0.00 | M19: 136.00 | N19: 92.80 | O19: 5.40 | P19: 0.10
B20: Хлеб ржан- пшен | D20: 40 | E20: 2.000 | F20: 0.400 | G20: 18.000 | H20: 88 | I20: 0.028 | J20: 0.000 | K20: 0.000 | L20: 0.216 | M20: 5.520 | N20: 25.440 | O20: 6.000 | P20: 0.744
B21: Хлеб белый,1с | D21: 30 | E21: 2.280 | F21: 0.240 | G21: 14.760 | H21: 71 | I21: 0.033 | J21: 0.000 | K21: 0.000 | L21: 0.330 | M21: 6.000 | N21: 19.500 | O21: 4.2 | P21: 0.330
E22: =SUM(E17:E21) -> 33.170 | F22: 36.690 | G22: 89.900 | H22: 738 | I22: 0.591 | J22: 1.450 | K22: 0.160 | L22: 2.656 | M22: 215.080 | N22: 520.460 | O22: 90.06 | P22: 5.305
A23: ФГОС:
A24: УФА 2021Сборние тех карт 63 | B24: Суп картофельный с макаронными изделиями | D24: 250 | E24: 6.6 | F24: 5.4 | G24: 24.2 | H24: 179 | I24: 0.12 | J24: 15.02 | K24: 0 | L24: 0 | M24: 15.02 | O24: 22.85 | P24: 0.96
B25: Хлеб ржан - пшен | D25: 20 | E25: 1 | F25: 0.2 | G25: 9 | H25: 44 | I25: 0.014 | J25: 0 | K25: 0 | L25: 0.108 | M25: 2.76 | N25: 12.72 | O25: 3 | P25: 0.372
B26: Хлеб белый , 1с | D26: 30 | E26: 2.28 | F26: 0.24 | G26: 14.76 | H26: 71 | I26: 0.033 | J26: 0 | K26: 0 | L26: 0.33 | M26: 6 | N26: 19.5 | O26: 4.2 | P26: 0.33
A27: ДеЛи,2015-544с,№378 | B27: Чай с молоком | D27: 150/50/15 | E27: 1.520 | F27: 1.350 | G27: 15.900 | H27: 81 | I27: 0.040 | J27: 1.330 | K27: 0.160 | L27: 0.000 | M27: 136.600 | N27: 92.800 | O27: 5.400 | P27: 0.110
E28: =SUM(E24:E27) -> 11.400 | F28: 7.190 | G28: 63.860 | H28: 375.00 | I28: 0.207 | J28: 16.350 | K28: 0.160 | L28: 0.438 | M28: 160.380 | N28: 125.020 | O28: 35.450 | P28: 1.772
A29: 2 день 1 неделя
A30: 1-4классы
A31: ДеЛи,2015-544с,№45 | B31: Салат из белокочанной капусты | D31: 60 | E31: 0.900 | F31: 3.000 | G31: 5.100 | H31: 51.9 | I31: 0.000 | J31: 8.500 | K31: 0.000 | L31: 1.300 | M31: 20.800 | N31: 6.900 | O31: 13.300 | P31: 0.500
A32: ДеЛи,2015№289 | B32: Рагу из птицы | D32: 50/150 | E32: 12.300 | F32: 17.660 | G32: 29.850 | H32: 313 | I32: 0.201 | J32: 8.076 | K32: 0.180 | L32: 2.100 | M32: 57.660 | N32: 201.911 | O32: 26.394 | P32: 0.111
A33: ДеЛи,2015-544с,№382 | B33: Какао с молоком | D33: 200 | E33: 3.780 | F33: 0.670 | G33: 26.000 | H33: 125 | I33: 0.020 | J33: 1.330 | K33: 0.000 | L33: 0.012 | M33: 133.330 | N33: 111.110 | O33: 25.560 | P33: 2.000
B34: Хлеб ржан - пшен,1с | D34: 20 | E34: 1.000 | F34: 0.200 | G34: 9.000 | H34: 44 | I34: 0.014 | J34: 0.000 | K34: 0.000 | L34: 0.108 | M34: 2.760 | N34: 12.720 | O34: 3.000 | P34: 0.372
B35: Хлеб белый,1с | D35: 30 | E35: 2.280 | F35: 0.240 | G35: 14.760 | H35: 71 | I35: 0.033 | L35: 0.330 | M35: 6.000 | N35: 19.500 | O35: 4.200 | P35: 0.330
E36: =SUM(E31:E35) -> 20.260 | F36: 21.770 | G36: 84.710 | H36: 605 | I36: 0.268 | J36: 17.906 | K36: 0.180 | L36: 3.850 | M36: 220.550 | N36: 352.141 | O36: 72.454 | P36: 3.313
A37: 5-11классы
A38: ДеЛи,2051-544с,№45 | B38: Салат из белокочанной капусты | D38: 100 | E38: 1.500 | F38: 0.075 | G38: 8.500 | H38: 86.5 | I38: 0.000 | J38: 14.160 | K38: 0.000 | L38: 2.160 | M38: 34.600 | N38: 11.500 | O38: 22.160 | P38: 0.830
A39: ДеЛи,2015№289 | B39: Рагу из птицы | D39: 50/150 | E39: 12.300 | F39: 17.660 | G39: 29.850 | H39: 313 | I39: 0.201 | J39: 8.076 | K39: 0.180 | L39: 2.100 | M39: 57.660 | N39: 201.911 | O39: 26.394 | P39: 0.110
A40: ДеЛи,2011-544с,№376 | B40: Чай с сахаром | D40: 200/15 | E40: 0.530 | F40: 0.000 | G40: 9.470 | H40: 40 | I40: 0.000 | J40: 0.270 | K40: 0.000 | L40: 0.000 | M40: 13.600 | N40: 22.130 | O40: 11.730 | P40: 0.100
B41: Хлеб ржан - пшен,1с | D41: 20 | E41: 1.000 | F41: 0.200 | G41: 9.000 | H41: 44 | I41: 0.014 | J41: 0.000 | K41: 0.000 | L41: 0.108 | M41: 2.760 | N41: 12.720 | O41: 3.000 | P41: 0.372
B42: Хлеб белый,1с | D42: 30 | E42: 2.280 | F42: 0.240 | G42: 14.760 | H42: 71 | I42: 0.033 | J42: 0.000 | K42: 0.000 | L42: 0.330 | M42: 6.000 | N42: 19.500 | O42: 4.200 | P42: 0.330
E43: 17.610 | F43: 18.175 | G43: 71.580 | H43: 555 | I43: =SUM(I39:I42) -> 0.248 | J43: 22.500 | K43: 0.180 | L43: 4.690 | M43: 114.620 | N43: 267.760 | O43: 67.480 | P43: 1.742
A44: ФГОС:
A45: 58УФА 2021Сборние тех карт | B45: Борщ с капустой и картофелем | D45: 250/10 | E45: 2.000 | F45: 5.400 | G45: 12.800 | H45: 111 | I45: 0.050 | J45: 7.950 | K45: 0.000 | L45: 0.000 | M45: 40.710 | N45: 0.000 | O45: 22.900 | P45: 1.080
A46: ДеЛи,2011-544с,№349 | B46: Чай с сахаром | D46: 200/15 | E46: 0.530 | F46: 0.000 | G46: 9.470 | H46: 40 | I46: 0.000 | J46: 0.270 | K46: 0.000 | L46: 0.000 | M46: 13.600 | N46: 22.130 | O46: 11.730 | P46: 0.110
B47: Хлеб белый 1с | D47: 30 | E47: 2.280 | F47: 0.240 | G47: 14.760 | H47: 71 | I47: 0.033 | J47: 0.000 | K47: 0.000 | L47: 0.330 | M47: 6.000 | N47: 19.500 | O47: 4.200 | P47: 0.330
B48: Хлеб ржан-пшен,1с | D48: 20 | E48: 1.000 | F48: 0.200 | G48: 9.000 | H48: 44 | I48: 0.014 | J48: 0.000 | K48: 0.000 | L48: 0.108 | M48: 2.760 | N48: 12.720 | O48: 3.000 | P48: 0.372
E49: =SUM(E45:E48) -> 5.810 | F49: 5.840 | G49: 46.030 | H49: 266 | I49: 0.097 | J49: 8.220 | K49: 0.000 | L49: 0.438 | M49: 63.070 | N49: 54.350 | O49: 41.830 | P49: 1.892
A50: 3 день 1 неделя
A51: 1-4классы
A52: ДеЛи,2015-584с,№52 | B52: Салат из свеклы отварной | D52: 60 | E52: 0.855 | F52: 3.653 | G52: 11.580 | H52: 56 | I52: 0.011 | J52: 7.700 | K52: 0.000 | L52: 0.641 | M52: 121.090 | N52: 84.582 | O52: 12.540 | P52: 0.198
A53: ДеЛи,2015-544с,№203.1 | B53: Макаронные изделия отварные с маслом | D53: 150/5 | E53: 5.100 | F53: 4.468 | G53: 28.500 | H53: 187 | I53: 0.067 | J53: 0.000 | K53: 0.100 | L53: 0.816 | M53: 16.456 | N53: 57.009 | O53: 8.479 | P53: 0.869
A54: ДеЛи,2015-544с,№256.1 | B54: Мясо тушеное | D54: 50/50 | E54: 10.500 | F54: 11.030 | G54: 3.184 | H54: 196 | I54: 0.140 | J54: 3.890 | K54: 0.000 | L54: 0.363 | M54: 66.806 | N54: 215.174 | O54: 30.164 | P54: 1.430
A55: ДеЛи,2015-544с,№377 | B55: Чай с сахаром и лимоном | D55: 200/15/7 | E55: 0.084 | F55: 0.012 | G55: 15.185 | H55: 62 | I55: 0.003 | J55: 2.800 | K55: 0.000 | L55: 0.014 | M55: 3.250 | N55: 1.540 | O55: 0.840 | P55: 0.087
B56: Хлеб ржан- пшен,1с | D56: 20 | E56: 1.000 | F56: 0.200 | G56: 9.000 | H56: 44 | I56: 0.014 | J56: 0.000 | K56: 0.000 | L56: 0.108 | M56: 2.760 | N56: 12.720 | O56: 3.000 | P56: 0.372
B57: Хлеб белый,1с | D57: 30 | E57: 2.280 | F57: 0.240 | G57: 14.760 | H57: 71 | I57: 0.033 | L57: 0.330 | M57: 6.000 | N57: 19.500 | O57: 4.200 | P57: 0.330
E58: =SUM(E52:E57) -> 19.819 | F58: 19.603 | G58: 82.209 | H58: 616 | I58: 0.268 | J58: 14.390 | K58: 0.100 | L58: 2.272 | M58: 216.362 | N58: 390.525 | O58: 59.223 | P58: 3.286
A59: 5-11классы
A60: ДеЛи,2015-584с,№52 | B60: Салат из свеклы отварной | D60: 100 | E60: 1.420 | F60: 6.080 | G60: 93.300 | H60: 0 | I60: 12.830 | J60: 0.000 | K60: 1.068 | L60: 201.81 | M60: 140.970 | N60: 11.500 | O60: 20.900 | P60: 0.330
A61: ДеЛи,2015-544с,№203.1 | B61: Макаронные изделия отварные с маслом | D61: 180/5 | E61: 6.120 | F61: 5.360 | G61: 34.200 | H61: 224 | I61: 0.080 | J61: 0.000 | K61: 0.119 | L61: 0.979 | M61: 19.740 | N61: 68.410 | O61: 10.170 | P61: 1.042
A62: ДеЛи,2015-544с,№295 | B62: Котлета рубленнная из брол цыплят | D62: 100 | E62: 15.300 | F62: 29.400 | G62: 15.450 | H62: 388 | I62: 0.100 | J62: 1.040 | K62: 0.000 | L62: 0.000 | M62: 55.530 | N62: 97.530 | O62: 20.800 | P62: 1.420
A63: Дели 2015 376 | B63: Чай с сахаром | D63: 200/15 | E63: 0.530 | F63: 0.000 | G63: 9.470 | H63: 40 | I63: 0.000 | J63: 0.270 | K63: 0.000 | L63: 0.000 | M63: 13.600 | N63: 22.130 | O63: 11.730 | P63: 0.110
B64: Хлеб ржано- пшени | D64: 20 | E64: 1.000 | F64: 0.200 | G64: 9.000 | H64: 44 | I64: 0.014 | J64: 0.000 | K64: 0.000 | L64: 0.108 | M64: 2.760 | N64: 12.720 | O64: 3.000 | P64: 0.372
B65: Хлеб белый,1с | D65: 30 | E65: 2.280 | F65: 0.240 | G65: 14.760 | H65: 71 | I65: 0.033 | L65: 0.330 | M65: 6.000 | N65: 19.500 | O65: 4.200 | P65: 0.330
E66: 26.650 | F66: 41.280 | G66: 176.180 | H66: 767 | I66: 13.570 | J66: 1.310 | K66: 1.187 | L66: 203.23 | M66: 238.600 | N66: 231.790 | O66: 70.800 | P66: 3.604
A67: ФГОС:
A68: 194Уфа 2021Сборние тех карт | B68: Каша ячневая молочная с маслом | D68: 250/10 | E68: 8.700 | F68: 10.000 | G68: 44.700 | H68: 313 | I68: 0.160 | J68: 0.610 | K68: 0.000 | L68: 0.000 | M68: 179.710 | N68: 0.000 | O68: 41.240 | P68: 1.090
A69: Дели 2015 376 | B69: Чай с молоком | D69: 150/50/15 | E69: 1.520 | F69: 1.350 | G69: 15.900 | H69: 81 | I69: 0.040 | J69: 1.330 | K69: 0.160 | L69: 0.000 | M69: 136.600 | N69: 92.800 | O69: 5.400 | P69: 0.110
B70: Хлеб белый , 1 с | D70: 30 | E70: 2.280 | F70: 0.240 | G70: 14.760 | H70: 71 | I70: 0.033 | L70: 0.330 | M70: 6.000 | N70: 19.500 | O70: 4.200 | P70: 0.330
B71: Хлеб ржано- пшенич,1с | D71: 20 | E71: 1.000 | F71: 0.200 | G71: 9.000 | H71: 44 | I71: 0.014 | J71: 0.000 | K71: 0.000 | L71: 0.108 | M71: 2.760 | N71: 12.720 | O71: 3.000 | P71: 0.372
E72: =SUM(E68:E71) -> 13.500 | F72: 11.790 | G72: 84.360 | H72: 509 | I72: 0.247 | J72: 1.940 | K72: 0.160 | L72: 0.438 | M72: 325.070 | N72: 125.020 | O72: 53.840 | P72: 1.902
A73: 4 день 1 неделя
A74: 1-4классы
A75: 56 Дели 2-015 | B75: Салат овощной с яблоками | D75: 60 | E75: 3.500 | F75: 6.110 | G75: 9.900 | H75: 124 | I75: 0.010 | J75: 11.310 | L75: 0.400 | M75: 126.880 | N75: 120.410 | O75: 41.330 | P75: 1.900
A76: ДеЛи,2015-544с,№312 | B76: Картофельное пюре | D76: 150 | E76: 3.090 | F76: 6.282 | G76: 22.000 | H76: 172 | I76: 0.164 | J76: 7.943 | K76: 0.080 | L76: 3.000 | M76: 47.805 | N76: 98.835 | O76: 8.000 | P76: 0.000
A77: Уфа 2021 №80 | B77: Рыба . Тушенная в томате с овощами | D77: 50/50 | E77: 8.900 | F77: 4.400 | G77: 4.700 | H77: 94 | I77: 0.010 | J77: 1.300 | K77: 0.000 | L77: 0.000 | M77: 8.090 | N77: 0.000 | O77: 9.680 | P77: 0.290
A78: ДеЛи,2015-544с,№376 | B78: Чай с сахаром | D78: 200/15 | E78: 0.530 | F78: 0.000 | G78: 9.470 | H78: 40 | I78: 0.000 | J78: 0.270 | K78: 0.000 | L78: 0.000 | M78: 13.600 | N78: 22.130 | O78: 11.730 | P78: 0.100
B79: Хлеб ржано - пшенич,1с | D79: 20 | E79: 1.000 | F79: 0.200 | G79: 9.000 | H79: 44 | I79: 0.014 | J79: 0.000 | K79: 0.000 | L79: 0.108 | M79: 2.760 | N79: 12.720 | O79: 3.000 | P79: 0.372
B80: Хлеб белый,1с | D80: 30 | E80: 2.280 | F80: 0.240 | G80: 14.760 | H80: 71 | I80: 0.033 | L80: 0.330 | M80: 6.000 | N80: 19.500 | O80: 4.200 | P80: 0.330
E81: =SUM(E75:E80) -> 19.300 | F81: 17.232 | G81: 69.830 | H81: 545 | I81: 0.231 | J81: 20.823 | K81: 0.080 | L81: 3.838 | M81: 205.135 | N81: 273.595 | O81: 77.940 | P81: 2.992
A82: 5-11классы
A83: ДеЛи,2015-544с,№312 | B83: Картофельное пюре | D83: 180 | E83: 3.708 | F83: 7.530 | G83: 26.390 | H83: 206 | I83: 0.196 | J83: 9.530 | K83: 0.095 | L83: 3.600 | M83: 57.360 | N83: 118.590 | O83: 9.590 | P83: 0.000
A84: Уфа 2021 № 80 | B84: Рыба . Тушенная в томате с овощами | D84: 60/60 | E84: 10.700 | F84: 5.200 | G84: 5.600 | H84: 120 | I84: 0.020 | J84: 1.550 | K84: 0.000 | L84: 0.000 | M84: 9.710 | N84: 0.000 | O84: 11.610 | P84: 0.340
A85: №376,2015 Дели г | B85: Чай с сахаром | D85: 200/15 | E85: 0.530 | F85: 0.000 | G85: 9.470 | H85: 40 | I85: 0.000 | J85: 0.270 | K85: 0.000 | L85: 0.000 | M85: 13.600 | N85: 22.130 | O85: 11.730 | P85: 0.100
B86: Хлеб ржано - пшенич,1с | D86: 20 | E86: 1.000 | F86: 0.200 | G86: 9.000 | H86: 44 | I86: 0.014 | J86: 0.000 | K86: 0.000 | L86: 0.108 | M86: 2.760 | N86: 12.720 | O86: 3.000 | P86: 0.372
B87: Хлеб белый,1с | D87: 60 | E87: 4.560 | F87: 0.480 | G87: 29.520 | H87: 142 | I87: 0.066 | J87: 0.000 | K87: 0.000 | L87: 0.660 | M87: 12.000 | N87: 39.000 | O87: 8.400 | P87: 0.660
E88: =SUM(E83:E87) -> 20.498 | F88: 13.410 | G88: 79.980 | H88: 552 | I88: 0.296 | J88: 11.350 | K88: 0.095 | L88: 4.368 | M88: 95.430 | N88: 192.440 | O88: 44.330 | P88: 1.472
A89: ФГОС:
A90: Уфа 2021 191 | B90: Каша рисовая молочная вязкая | D90: 250/10 | E90: 7.20 | F90: 9.90 | G90: 48.90 | H90: 319.00 | I90: 0.05 | J90: 0.26 | K90: 0.00 | L90: 0.00 | M90: 144.75 | N90: 0.00 | O90: 40.68 | P90: 0.67
A91: №376,2015 Дели гМосквва | B91: Чай с сахаром | D91: 200/15 | E91: 0.530 | F91: 0.000 | G91: 9.470 | H91: 40 | I91: 0.000 | J91: 0.270 | K91: 0.000 | L91: 0.000 | M91: 13.600 | N91: 22.130 | O91: 11.730 | P91: 0.100
B92: Хлеб ржано - пшенич | D92: 20 | E92: 1.000 | F92: 0.200 | G92: 9.000 | H92: 44 | I92: 0.014 | J92: 0.000 | K92: 0.000 | L92: 0.108 | M92: 2.760 | N92: 12.720 | O92: 3.00 | P92: 0.372
B93: Хлеб белый,1с | D93: 30 | E93: 2.280 | F93: 0.240 | G93: 14.760 | H93: 71 | I93: 0.033 | L93: 0.330 | M93: 6.000 | N93: 19.500 | O93: 4.200 | P93: 0.330
E94: =SUM(E89:E93) -> 11.010 | F94: 10.340 | G94: 82.130 | H94: 474 | I94: 0.097 | J94: 0.530 | K94: 0.000 | L94: 0.438 | M94: 167.110 | N94: 54.350 | O94: 56.610 | P94: 1.472
A95: 5 день 1 неделя
A96: 1-4классы
A97: ДеЛи,2015-544с,№59 | B97: Салат из моркови с яблоками | D97: 60 | E97: 0.660 | F97: 0.120 | G97: 2.280 | H97: 14 | I97: 0.036 | J97: 10.000 | K97: 0.000 | L97: 0.420 | M97: 8.400 | N97: 15.600 | O97: 12.000 | P97: 0.340
A98: Дели 2015 сбор 304 | B98: Рис отварной | D98: 150 | E98: 3.834 | F98: 5.434 | G98: 29.600 | H98: 210 | I98: 0.044 | J98: 0.000 | K98: 0.180 | L98: 0.264 | M98: 11.460 | N98: 84.150 | O98: 13.330 | P98: 0.010
A99: дели 2015№268 | B99: Котлеты гов | D99: 80 | E99: 9.660 | F99: 12.412 | G99: 9.450 | H99: 182 | I99: 0.166 | J99: 3.861 | K99: 0.000 | L99: 1.384 | M99: 54.970 | N99: 155.930 | O99: 21.930 | P99: 1.678
A100: Дели 2015 378 | B100: Чай с молоком | D100: 150/50/15 | E100: 1.520 | F100: 1.350 | G100: 15.900 | H100: 81 | I100: 0.040 | J100: 1.330 | K100: 0.160 | L100: 0.000 | M100: 136.600 | N100: 92.800 | O100: 5.400 | P100: 0.110
B101: Хлеб ржано - пшеничный,1с | D101: 20 | E101: 1.000 | F101: 0.200 | G101: 9.000 | H101: 44 | I101: 0.014 | J101: 0.000 | K101: 0.000 | L101: 0.108 | M101: 2.760 | N101: 12.720 | O101: 3.000 | P101: 0.372
B102: Хлеб белый,1с | D102: 30 | E102: 2.280 | F102: 0.240 | G102: 14.760 | H102: 71 | I102: 0.033 | J102: 0.000 | K102: 0.000 | L102: 0.330 | M102: 6.000 | N102: 19.500 | O102: 4.200 | P102: 0.330
E103: =SUM(E97:E102) -> 18.954 | F103: 19.756 | G103: 80.990 | H103: 602 | I103: 0.333 | J103: 15.191 | K103: 0.340 | L103: 2.506 | M103: 220.190 | N103: 380.700 | O103: 59.860 | P103: 2.840
A104: 5-11классы
A105: ДеЛи,2015-544с,№304 | B105: Рис отварной | D105: 180 | E105: 4.600 | F105: 6.520 | G105: 35.510 | H105: 252 | I105: 0.052 | J105: 0.000 | K105: 0.216 | L105: 0.316 | M105: 13.750 | N105: 100.980 | O105: 15.990 | P105: 0.011
A106: №747,2004г | B106: Котлета гов | D106: 90 | E106: 11.590 | F106: 13.960 | G106: 10.630 | H106: 205 | I106: 0.186 | J106: 4.340 | K106: 0.000 | L106: 1.550 | M106: 61.840 | N106: 175.420 | O106: 24.670 | P106: 1.880
A107: ДеЛи,2015-544с,№378 | B107: Чай с молоком | D107: 150/50/15 | E107: 1.520 | F107: 1.350 | G107: 15.900 | H107: 81 | I107: 0.040 | J107: 1.330 | K107: 0.160 | L107: 0.000 | M107: 136.600 | N107: 92.800 | O107: 5.400 | P107: 0.110
B108: Хлеб белый , 1с | D108: 30 | E108: 2.280 | F108: 0.240 | G108: 14.760 | H108: 71 | I108: 0.330 | J108: 0.000 | K108: 0.000 | L108: 0.330 | M108: 6.000 | N108: 19.500 | O108: 4.200 | P108: 0.330
B109: Хлеб ржано - пшеничный,1с | D109: 40 | E109: 2.000 | F109: 0.400 | G109: 18.000 | H109: 88 | I109: 0.028 | J109: 0.000 | K109: 0.000 | L109: 0.216 | M109: 5.520 | N109: 25.440 | O109: 6.000 | P109: 0.744
E110: =SUM(E105:E109) -> 21.990 | F110: 22.470 | G110: 94.800 | H110: 697 | I110: 0.636 | J110: 5.670 | K110: 0.376 | L110: 2.412 | M110: 223.710 | N110: 414.140 | O110: 56.260 | P110: 3.075
A111: ФГОС:
A112: Уфа 2021 65 | B112: Суп картофельный с бобовыми и гренками | D112: 300/25 | E112: 9.000 | F112: 5.400 | G112: 38.900 | H112: 253 | I112: 0.240 | J112: 5.590 | K112: 0.000 | L112: 0.000 | M112: 46.410 | N112: 0.000 | O112: 52.310 | P112: 2.770
B113: Хлеб ржано- пшеничный | D113: 20 | E113: 1.000 | F113: 0.200 | G113: 9.000 | H113: 44 | I113: 0.014 | J113: 0.000 | K113: 0.000 | L113: 0.108 | M113: 2.760 | N113: 12.720 | O113: 3.000 | P113: 0.372
A114: ДеЛи,2015-544с,№378 | B114: Чай с молоком | D114: 150/50/15 | E114: 1.520 | F114: 1.350 | G114: 15.900 | H114: 81 | I114: 0.040 | J114: 1.330 | K114: 0.160 | L114: 0.000 | M114: 136.600 | N114: 92.800 | O114: 5.400 | P114: 0.110
B115: Хлеб белый,1с | D115: 30 | E115: 2.280 | F115: 0.240 | G115: 14.760 | H115: 71 | I115: 0.033 | L115: 0.330 | M115: 6.000 | N115: 19.500 | O115: 4.200 | P115: 0.330
E116: =SUM(E112:E115) -> 13.800 | F116: 7.190 | G116: 78.560 | H116: 449 | I116: 0.327 | J116: 6.920 | K116: 0.160 | L116: 0.438 | M116: 191.770 | N116: 125.020 | O116: 64.910 | P116: 3.582
A117: 6 день 1 неделя
A118: 1-4классы
A119: Дели 2015№ 338 | B119: Плоды и ягоды свежие ( яблоки) | D119: 100 | F119: 0.400 | G119: 7.350 | H119: 47 | I119: 0.030 | J119: 8.000 | K119: 0.000 | L119: 0.100 | M119: 16.000 | N119: 11.000 | O119: 9.000 | P119: 0.030
A120: Уфа 2021 №21 | B120: Салат Витаминный | D120: 60 | E120: 0.900 | F120: 2.700 | G120: 6.500 | H120: 56 | I120: 0.020 | J120: 3.800 | K120: 0.000 | L120: 0.000 | M120: 20.840 | N120: 0.000 | O120: 11.000 | P120: 0.540
A121: Уфа2021 №132 | B121: Куры отварные | D121: 90 | E121: 22.500 | F121: 18.900 | G121: 0.300 | H121: 295 | I121: 0.050 | J121: 0.860 | K121: 0.000 | L121: 0.000 | M121: 18.470 | N121: 0.000 | O121: 18.880 | P121: 1.780
A122: Уфа 2021 № 184 | B122: Каша перловая рассыпчатая | D122: 180/5 | E122: 5.500 | F122: 4.700 | G122: 38.000 | H122: 229 | I122: 0.060 | J122: 0.000 | K122: 0.000 | L122: 0.000 | M122: 22.670 | N122: 0.000 | O122: 22.780 | P122: 1.060
A123: Дели 2015 №379 | B123: Кофейный напиток с молоком | D123: 200 | E123: 3.600 | F123: 2.670 | G123: 29.200 | H123: 156 | I123: 0.030 | J123: 1.470 | K123: 0.000 | L123: 0.000 | M123: 158.670 | N123: 132.000 | O123: 29.330 | P123: 2.400
B124: Хлеб ржано- пшеничный ,1с | D124: 20 | E124: 1.000 | F124: 0.200 | G124: 9.000 | H124: 44 | I124: 0.014 | J124: 0.000 | K124: 0.000 | L124: 0.108 | M124: 2.760 | N124: 12.720 | O124: 3.000 | P124: 0.372
B125: Хлеб белый,1с | D125: 30 | E125: 2.280 | F125: 0.240 | G125: 14.760 | H125: 71 | I125: 0.033 | L125: 0.330 | M125: 6.000 | N125: 19.500 | O125: 4.200 | P125: 0.330
E126: =SUM(E119:E125) -> 35.780 | F126: 29.810 | G126: 105.110 | H126: 898 | I126: 0.237 | J126: 14.130 | K126: 0.000 | L126: 0.538 | M126: 245.410 | N126: 175.220 | O126: 98.190 | P126: 6.512
A127: 5-11классы
A128: Дели 2015 №338 | B128: Плоды и ягоды свежие ( Яблоки ) | D128: 100 | E128: 0.4 | F128: 0.4 | G128: 7.35 | H128: 47 | I128: 0.03 | J128: 8 | K128: 0 | L128: 0.1 | M128: 16 | N128: 11 | O128: 9 | P128: 0.03
A129: Уфа 2021 №132 | B129: Куры отварные | D129: 100 | E129: 26.1 | F129: 24.06 | G129: 0.3 | H129: 327 | I129: 0.08 | J129: 1.27 | K129: 0 | L129: 0 | M129: 22.58 | N129: 0 | O129: 24.33 | P129: 2.14
A130: Уфа 2021 №184 | B130: Каша перловая рассыпчатая | D130: 180/5 | E130: 5.50 | F130: 4.70 | G130: 38.00 | H130: 229.00 | I130: 0.06 | J130: 0.00 | K130: 0.00 | L130: 0.00 | M130: 22.67 | N130: 0.00 | O130: 22.78 | P130: 1.06
B131: Хлеб ржано - пшеничный ,1с | D131: 40 | E131: 2.00 | F131: 0.40 | G131: 18.00 | H131: 88.00 | I131: 0.02 | J131: 0.00 | K131: 0.00 | L131: 0.22 | M131: 5.52 | N131: 25.44 | O131: 6.00 | P131: 0.74
B132: Хлеб белый , 1 с | D132: 30 | E132: 2.28 | F132: 0.24 | G132: 14.76 | H132: 71.00 | I132: 0.03 | J132: 0.00 | K132: 0.00 | L132: 0.11 | M132: 2.76 | N132: 12.72 | O132: 3.00 | P132: 0.37
A133: Дели 2015 № 379 | B133: Кофейный напиток с молоком | D133: 200 | E133: 3.600 | F133: 2.670 | G133: 29.200 | H133: 156 | I133: 0.030 | J133: 1.470 | K133: 0.000 | L133: 0.000 | M133: 158.670 | N133: 7.500 | O133: 6.500 | P133: 0.197
E134: 39.880 | F134: 32.470 | G134: 107.610 | H134: 918 | I134: 0.253 | J134: 10.740 | K134: =SUM(K130:K133) -> 0.000 | L134: 0.428 | M134: 228.200 | N134: 56.660 | O134: 71.610 | P134: 4.539

Sheet меню шк 2 неделя
A1: Согласовано | M1: Утверждаю
M2: Директор ООО " ГРАНД"
M3: Васянина Ю.С.
B5: Примерное недельное меню для обучающихся в общеобразовательных организациях
A6: 2 неделя 1 день
A7: 1-4классы
A8: Рецептура | B8: Наименование блюд | D8: Выход,г | E8: Цена | F8: Белки,г | G8: Жиры,г | H8: Углеводы,г | I8: Калорийность,ккал | J8: Вит.В1,мг | K8: Вит.С,мг | L8: Вит.А,мг | M8: Вит.Е,мг | N8: Са,мг | O8: Р,мг | P8: Mg,мг | Q8: Fe,мг
A9: ДеЛи,2015,№338 | B9: плоты и ягоды свежие ( яблоки) | D9: 100 | E9: 0.40 | F9: 0.400 | G9: 0.400 | H9: 7.350 | I9: 47 | J9: 0.030 | K9: 8.000 | L9: 0.000 | M9: 0.200 | N9: 46.000 | O9: 11.000 | P9: 0.100 | Q9: 0.000
A10: Дели 2015 №45 | B10: Салат из белокачанной капусты | D10: 60 | E10: 23.75 | F10: 0.780 | G10: 1.940 | H10: 3.870 | I10: 36 | J10: 0.013 | K10: 6.250 | L10: 0.000 | M10: 0.060 | N10: 16.980 | O10: 46.980 | P10: 6.050 | Q10: 0.270
A11: Дели 2015 №280 | B11: Фрикадельки в соусе | D11: 55/50 | F11: 8.330 | G11: 7.743 | H11: 3.194 | I11: 175 | J11: 0.030 | K11: 0.650 | L11: 0.100 | M11: 1.256 | N11: 100.530 | O11: 110.071 | P11: 0.077 | Q11: 1.000
A12: Дели 2015 №171 | B12: Каша гречневая рассыпчатая с маслом | D12: 150/5 | E12: 10.42 | F12: 6.682 | G12: 9.024 | H12: 34.000 | I12: 170 | J12: 0.000 | K12: 0.000 | L12: 0.000 | M12: 0.518 | N12: 44.820 | O12: 170.553 | P12: 40.550 | Q12: 1.010
A13: ДеЛи,2011-544с,№376 | B13: Чай с сахаром | D13: 200/15 | E13: 1.89 | F13: 0.530 | G13: 0.000 | H13: 9.470 | I13: 40 | J13: 0.000 | K13: 0.270 | L13: 0.000 | M13: 0.000 | N13: 13.600 | O13: 22.130 | P13: 11.730 | Q13: 0.100
B14: Хлеб ржан - пшеничный ,1с | D14: 20 | E14: 1.37 | F14: 1.000 | G14: 0.200 | H14: 9.000 | I14: 44 | J14: 0.014 | K14: 0.000 | L14: 0.000 | M14: 0.108 | N14: 2.760 | O14: 12.720 | P14: 3.000 | Q14: 0.372
B15: Хлеб белый,1с | D15: 30 | E15: 1.41 | F15: 2.280 | G15: 0.240 | H15: 14.760 | I15: 71 | J15: 0.033 | M15: 0.330 | N15: 6.000 | O15: 19.500 | P15: 4.200 | Q15: 0.330
A16: Итого: | E16: =SUM(E9:E15) -> 39.24 | F16: 20.002 | G16: 19.547 | H16: 81.644 | I16: 583 | J16: 0.120 | K16: 15.170 | L16: 0.100 | M16: 2.472 | N16: 230.690 | O16: 392.954 | P16: 65.707 | Q16: 3.082
A17: 5-11классы
A18: дели 2015 №171 | B18: Каша гречневая рассыпчатая с маслом | D18: 180/5 | E18: 12.21 | F18: 8.01 | G18: 10.82 | H18: 40.79 | I18: 203.90 | J18: 0.00 | K18: 0.00 | L18: 0.00 | M18: 0.62 | N18: 81.30 | O18: 204.66 | P18: 48.65 | Q18: 1.21
A19: Дели 2015№280 | B19: Фрикадельки в соусе | D19: 55/50 | E19: 17.59 | F19: 8.330 | G19: 7.743 | H19: 3.194 | I19: 175 | J19: 0.030 | K19: 0.650 | L19: 0.100 | M19: 1.256 | N19: 100.530 | O19: 110.071 | P19: 0.077 | Q19: 1.000
B20: Хлеб ржан -пшеничный , 1 с | D20: 20 | E20: 4.12 | F20: 1.00 | G20: 0.20 | H20: 9.00 | I20: 44.00 | J20: 0.01 | K20: 0.00 | L20: 0.00 | M20: 0.11 | N20: 2.76 | O20: 12.72 | P20: 3.00 | Q20: 0.37
A21: ДеЛи,2011-544с,№376 | B21: Чай с сахаром | D21: 200/15 | E21: 1.89 | F21: 0.530 | G21: 0.000 | H21: 9.470 | I21: 40 | J21: 0.000 | K21: 0.270 | L21: 0.000 | M21: 0.000 | N21: 13.600 | O21: 22.130 | P21: 11.730 | Q21: 0.100
B22: Хлеб белый,1с | D22: 30 | E22: 1.41 | F22: 2.280 | G22: 0.240 | H22: 14.760 | I22: 71 | J22: 0.033 | K22: 0.000 | L22: 0.000 | M22: 0.330 | N22: 6.000 | O22: 19.500 | P22: 4.2 | Q22: 0.330
A23: Итого: | E23: =SUM(E18:E22) -> 37.22 | F23: 20.150 | G23: 19.003 | H23: 77.214 | I23: 534 | J23: 0.077 | K23: 0.920 | L23: 0.100 | M23: 2.314 | N23: 204.190 | O23: 369.081 | P23: 67.657 | Q23: 3.012
A24: ФГОС:
A25: Уфа 2021 №63 | B25: Суп картофельный с макаронными изделиями | D25: 250 | E25: 4.32 | F25: 6.6 | G25: 5.4 | H25: 24.2 | I25: 179 | J25: 0.12 | K25: 15.02 | L25: 0 | M25: 0 | N25: 15.02 | O25: 0 | P25: 22.85 | Q25: 0.96
B26: Хлеб пшеничный , 1 сорт | D26: 30 | F26: 2.28 | G26: 0.24 | H26: 14.76 | I26: 71 | J26: 0.033 | K26: 0 | L26: 0 | M26: 0.33 | N26: 6 | O26: 19.5 | P26: 4.2 | Q26: 0.33
B27: Хлеб ржан - пше , 1 с | D27: 20 | F27: 1 | G27: 0.2 | H27: 9 | I27: 44 | J27: 0.01 | K27: 0 | L27: 0 | M27: 0.11 | N27: 2.76 | O27: 12.72 | P27: 3 | Q27: 0.37
A28: ДеЛи,2011-544с,№376 | B28: Чай с сахаром | D28: 200/15 | E28: 1.89 | F28: 0.530 | G28: 0.000 | H28: 9.470 | I28: 40 | J28: 0.000 | K28: 0.270 | L28: 0.000 | M28: 0.000 | N28: 13.600 | O28: 22.130 | P28: 11.730 | Q28: 0.100
A29: Итого: | E29: =SUM(E25:E28) -> 6.21 | F29: 10.410 | G29: 5.840 | H29: 57.430 | I29: 334.00 | J29: 0.163 | K29: 15.290 | L29: 0.000 | M29: 0.440 | N29: 37.380 | O29: 54.350 | P29: 41.780 | Q29: 1.760
A30: 2 день 2 неделя
A31: 1-4классы
A32: ДеЛи,2015,№52 | B32: Салат из свеклы отварной | D32: 60 | E32: 3.07 | F32: 0.855 | G32: 3.653 | H32: 11.580 | I32: 56.0 | J32: 0.011 | K32: 7.700 | L32: 0.000 | M32: 0.641 | N32: 121.090 | O32: 64.582 | P32: 12.540 | Q32: 0.198
A33: Дели 2015 №291 | B33: Плов из птицы | D33: 50/150 | E33: 7.20 | F33: 14.510 | G33: 14.710 | H33: 28.340 | I33: 364 | J33: 0.210 | K33: 4.900 | L33: 0.100 | M33: 1.200 | N33: 83.070 | O33: 273.000 | P33: 40.450 | Q33: 1.900
A34: Дели 2015 №377 | B34: Чай с лимоном | D34: 200/15/7 | E34: 1.89 | F34: 0.084 | G34: 0.012 | H34: 15.185 | I34: 62 | J34: 0.003 | K34: 2.800 | L34: 0.000 | M34: 0.014 | N34: 3.250 | O34: 1.540 | P34: 0.840 | Q34: 0.067
B35: Хлеб ржан - пшен,1с | D35: 20 | E35: 1.37 | F35: 1.000 | G35: 0.200 | H35: 9.000 | I35: 44 | J35: 0.014 | K35: 0.000 | L35: 0.000 | M35: 0.108 | N35: 2.760 | O35: 12.720 | P35: 3.000 | Q35: 0.372
B36: Хлеб белый,1с | D36: 30 | E36: 1.41 | F36: 2.280 | G36: 0.240 | H36: 14.760 | I36: 71 | J36: 0.033 | M36: 0.330 | N36: 6.000 | O36: 19.500 | P36: 4.200 | Q36: 0.330
A37: Итого: | E37: =SUM(E32:E36) -> 14.94 | F37: 18.729 | G37: 18.815 | H37: 78.865 | I37: 597 | J37: 0.271 | K37: 15.400 | L37: 0.100 | M37: 2.293 | N37: 216.170 | O37: 371.342 | P37: 61.030 | Q37: 2.867
A38: 5-11классы
A39: Дели 2015 №52 | B39: Салат из свеклы отварной | D39: 100 | E39: 3.07 | F39: 1.425 | G39: 6.080 | H39: 19.300 | I39: 93.3 | J39: 0.027 | K39: 12.830 | L39: 0.000 | M39: 1.068 | N39: 201.810 | O39: 107.630 | P39: 20.900 | Q39: 0.330
A40: Дели 2015 № 291 | B40: Плов из птицы | D40: 50/150 | E40: 7.20 | F40: 14.510 | G40: 14.710 | H40: 28.340 | I40: 364 | J40: 0.210 | K40: 4.900 | L40: 0.100 | M40: 1.200 | N40: 83.070 | O40: 273.000 | P40: 40.450 | Q40: 1.900
A41: ДеЛи,2011-544с,№376 | B41: Чай с сахаром | D41: 200/15 | E41: 1.89 | F41: 0.530 | G41: 0.000 | H41: 9.470 | I41: 40 | J41: 0.000 | K41: 0.270 | L41: 0.000 | M41: 0.000 | N41: 13.600 | O41: 22.130 | P41: 11.730 | Q41: 0.100
B42: Хлеб ржан - пшен,1с | D42: 20 | E42: 1.37 | F42: 1.000 | G42: 0.200 | H42: 9.000 | I42: 44 | J42: 0.014 | K42: 0.000 | L42: 0.000 | M42: 0.108 | N42: 2.760 | O42: 12.720 | P42: 3.000 | Q42: 0.372
B43: Хлеб белый,1с | D43: 30 | E43: 1.41 | F43: 2.280 | G43: 0.240 | H43: 14.760 | I43: 71 | J43: 0.033 | K43: 0.000 | L43: 0.000 | M43: 0.330 | N43: 6.000 | O43: 19.500 | P43: 4.200 | Q43: 0.330
A44: Итого: | E44: =SUM(E40:E43) -> 11.87 | F44: 19.740 | G44: 21.230 | H44: 80.870 | I44: 612.3 | J44: 0.284 | K44: 18.000 | L44: =SUM(L40:L43) -> 0.100 | M44: 2.706 | N44: 224.170 | O44: 434.980 | P44: 80.280 | Q44: 3.032
A45: ФГОС:
A46: Уфа 2021 №65 | B46: Суп картофельный с бобовыми и гренками | D46: 300/25 | E46: 8.22 | F46: 9.000 | G46: 5.400 | H46: 38.900 | I46: 253 | J46: 0.240 | K46: 5.590 | L46: 0.000 | M46: 0.000 | N46: 46.610 | O46: 0.000 | P46: 52.310 | Q46: 2.770
A47: Дели 2015 №377 | B47: Чай с лимоном | D47: 200/15/7 | F47: 0.084 | G47: 0.012 | H47: 15.185 | I47: 62 | J47: 0.003 | K47: 2.800 | L47: 0.000 | M47: 0.014 | N47: 3.250 | O47: 1.540 | P47: 0.840 | Q47: 0.067
A48: ДеЛи,2011-544с,№349 | B48: Хлеб белый , 1 с | D48: 30 | E48: 3.65 | F48: 2.280 | G48: 0.240 | H48: 14.760 | I48: 71 | J48: 0.033 | K48: 0.000 | L48: 0.000 | M48: 0.330 | N48: 6.000 | O48: 19.500 | P48: 4.200 | Q48: 0.330
B49: Хлеб ржан - пшен,1с | D49: 20 | E49: 1.37 | F49: 1.000 | G49: 0.200 | H49: 9.000 | I49: 44 | J49: 0.014 | K49: 0.000 | L49: 0.000 | M49: 0.108 | N49: 2.760 | O49: 12.720 | P49: 3.000 | Q49: 0.372
A50: Итого: | E50: =SUM(E46:E49) -> 13.24 | F50: 12.364 | G50: 5.852 | H50: 77.845 | I50: 430 | J50: 0.290 | K50: 8.390 | L50: 0.000 | M50: 0.452 | N50: 58.620 | O50: 33.760 | P50: 60.350 | Q50: 3.539
A51: 3 день 2 неделя
A52: 1-4классы
A53: уфа 2021 №21 | B53: Салат Витаминный | D53: 60 | E53: 2.12 | F53: 0.900 | G53: 2.700 | H53: 6.500 | I53: 56 | J53: 0.020 | K53: 3.800 | L53: 0.000 | M53: 0.000 | N53: 20.840 | O53: 0.000 | P53: 11.000 | Q53: 0.540
A54: Дели 2015 № 312 | B54: Пюре картофельное | D54: 150 | E54: 5.32 | F54: 3.090 | G54: 8.282 | H54: 22.000 | I54: 172 | J54: 0.164 | K54: 7.943 | L54: 0.080 | M54: 0.231 | N54: 47.805 | O54: 98.835 | P54: 8.000 | Q54: 0.000
A55: Дели 2015 №234 | B55: Котлеты рыбные | D55: 90 | E55: 38.83 | F55: 7.250 | G55: 4.770 | H55: 8.420 | I55: 131 | J55: 0.056 | K55: 0.540 | L55: 0.110 | M55: 0.726 | N55: 49.520 | O55: 154.190 | P55: 13.500 | Q55: 0.000
A56: Дели 2015№ 379 | B56: Кофейный напиток с молоком | D56: 200 | E56: 2.87 | F56: 3.600 | G56: 2.670 | H56: 29.200 | I56: 155 | J56: 0.030 | K56: 1.470 | L56: 0.000 | M56: 0.000 | N56: 158.670 | O56: 132.000 | P56: 29.330 | Q56: 2.400
B57: Хлеб ржан - пшенс | D57: 20 | E57: 1.37 | F57: 1.000 | G57: 0.200 | H57: 9.000 | I57: 44 | J57: 0.014 | K57: 0.000 | L57: 0.000 | M57: 0.108 | N57: 2.760 | O57: 12.720 | P57: 3.000 | Q57: 0.372
B58: Хлеб белый,1с | D58: 30 | E58: 1.41 | F58: 2.280 | G58: 0.240 | H58: 14.760 | I58: 71 | J58: 0.033 | M58: 0.330 | N58: 6.000 | O58: 19.500 | P58: 4.200 | Q58: 0.330
A59: Итого: | E59: =SUM(E53:E58) -> 51.92 | F59: 18.120 | G59: 18.862 | H59: 89.880 | I59: 629 | J59: 0.317 | K59: 13.753 | L59: 0.190 | M59: 1.395 | N59: 285.595 | O59: 417.245 | P59: 69.030 | Q59: 3.642
A60: 5-11классы
A61: Уфа 2021 №21 | B61: Салат Витаминный | D61: 100 | E61: 2.12 | F61: 1.500 | G61: 4.500 | H61: 10.800 | I61: 93 | J61: 0.020 | K61: 6.340 | L61: 0.000 | M61: 0.000 | N61: 34.740 | O61: 0.000 | P61: 18.330 | Q61: 0.910
A62: Дели 2015 № 312 | B62: Пюре картофельное | D62: 180 | E62: 5.32 | F62: 3.708 | G62: 7.530 | H62: 26.390 | I62: 206 | J62: 0.196 | K62: 9.530 | L62: 0.095 | M62: 3.600 | N62: 57.360 | O62: 118.590 | P62: 9.590 | Q62: 0.000
A63: Дели 2015 №234 | B63: Котлеты рыбные | D63: 90 | E63: 23.75 | F63: 7.250 | G63: 4.770 | H63: 8.420 | I63: 131 | J63: 0.056 | K63: 0.540 | L63: 0.110 | M63: 0.726 | N63: 49.520 | O63: 154.190 | P63: 13.500 | Q63: 0.000
B64: Хлеб ржано-пшен , 1 с | D64: 20 | E64: 4.32 | F64: 1 | G64: 0.2 | H64: 9 | I64: 44 | J64: 0.014 | K64: 0 | L64: 0 | M64: 0.108 | N64: 2.76 | O64: 12.72 | P64: 3 | Q64: 0.372
A65: ДеЛи,2011-544с,№376 | B65: Чай с сахаром | D65: 200/15 | E65: 1.89 | F65: 0.530 | G65: 0.000 | H65: 0.470 | I65: 40 | J65: 0.000 | K65: 0.270 | L65: 0.000 | M65: 0.000 | N65: 13.600 | O65: 22.130 | P65: 11.730 | Q65: 0.100
B66: Хлеб белый,1с | D66: 30 | E66: 1.41 | F66: 2.280 | G66: 0.240 | H66: 14.760 | I66: 71 | J66: 0.033 | M66: 0.330 | N66: 6.000 | O66: 19.500 | P66: 4.200 | Q66: 0.330
A67: Итого: | E67: =SUM(E62:E66) -> 36.69 | F67: 16.258 | G67: 17.240 | H67: 69.840 | I67: 585 | J67: 0.319 | K67: 16.680 | L67: 0.205 | M67: 4.764 | N67: 163.980 | O67: 327.130 | P67: 60.350 | Q67: 1.712
A68: ФГОС:
A69: Уфа 2021 №90 | B69: Каша рисовая молочная | D69: 250 | E69: 6.37 | F69: 5.500 | G69: 16.900 | H69: 81.600 | I69: 504 | J69: 0.050 | K69: 0.000 | L69: 0.000 | M69: 0.000 | N69: 8.120 | O69: 0.000 | P69: 33.250 | Q69: 0.750
A70: Дели 2015 №379 | B70: Кофейный напиток с молоком | D70: 200 | E70: 4.32 | F70: 3.6 | G70: 2.67 | H70: 29.2 | I70: 155 | J70: 0.03 | K70: 1.47 | L70: 0 | M70: 0 | N70: 158.67 | O70: 132 | P70: 29.33 | Q70: 2.4
B71: Хлеб белый , 1 с | D71: 30 | E71: 2.28 | F71: 2.280 | G71: 0.240 | H71: 14.760 | I71: 71 | J71: 0.033 | K71: 0.000 | L71: 0.000 | M71: 0.108 | N71: 2.760 | O71: 12.720 | P71: 3.000 | Q71: 0.372
B72: Хлеб ржан - пшен,1с | D72: 20 | E72: 1.37 | F72: 1.000 | G72: 0.200 | H72: 9.000 | I72: 44 | J72: 0.014 | K72: 0.000 | L72: 0.000 | M72: 0.108 | N72: 2.760 | O72: 12.720 | P72: 3.000 | Q72: 0.372
A73: Итого: | E73: =SUM(E69:E72) -> 14.34 | F73: 12.380 | G73: 20.010 | H73: 134.560 | I73: 774 | J73: 0.127 | K73: 1.470 | L73: 0.000 | M73: 0.216 | N73: 172.310 | O73: 157.440 | P73: 68.580 | Q73: 3.894
A74: 4 день 2 неделя
A75: 1-4классы
A76: Дели 2015 №62 | B76: Салат из моркови с сахаром | D76: 60 | E76: 4.06 | F76: 0.516 | G76: 2.132 | H76: 4.450 | I76: 50 | J76: 0.029 | K76: 13.430 | L76: 0.000 | M76: 0.234 | N76: 23.302 | O76: 10.850 | P76: 2.468 | Q76: 0.158
A77: Уфа 2021 №80 | B77: Рыба тушеная с овошами | D77: 50/50 | E77: 12.06 | F77: 8.900 | G77: 4.400 | H77: 4.700 | I77: 94 | J77: 0.010 | K77: 1.300 | L77: 0.000 | M77: 0.000 | N77: 8.090 | O77: 0.000 | P77: 9.689 | Q77: 1.300
A78: Дели 2015 №203 | B78: Макаронные изделия отварные с маслом | D78: 150/5 | E78: 32.62 | F78: 5.100 | G78: 4.680 | H78: 28.500 | I78: 187 | J78: 0.067 | K78: 0.000 | L78: 0.100 | M78: 0.816 | N78: 16.457 | O78: 57.009 | P78: 8.479 | Q78: 0.869
A79: Дели 2015 № 382 | B79: Какао с молоком | D79: 200 | E79: 1.89 | F79: 3.780 | G79: 0.670 | H79: 26.000 | I79: 125 | J79: 0.020 | K79: 1.330 | L79: 0.000 | M79: 0.012 | N79: 133.330 | O79: 111.110 | P79: 25.560 | Q79: 2.000
B80: Хлеб ржан- пшен,1с | D80: 20 | E80: 1.37 | F80: 1.000 | G80: 0.200 | H80: 9.000 | I80: 44 | J80: 0.014 | K80: 0.000 | L80: 0.000 | M80: 0.108 | N80: 2.760 | O80: 12.720 | P80: 3.000 | Q80: 0.372
B81: Хлеб белый,1с | D81: 30 | E81: 1.41 | F81: 2.280 | G81: 0.240 | H81: 14.760 | I81: 71 | J81: 0.033 | M81: 0.330 | N81: 6.000 | O81: 19.500 | P81: 4.200 | Q81: 0.330
A82: Итого: | E82: =SUM(E76:E81) -> 53.41 | F82: 21.576 | G82: 12.322 | H82: 87.410 | I82: 571 | J82: 0.173 | K82: 16.060 | L82: 0.100 | M82: 1.500 | N82: 189.939 | O82: 211.189 | P82: 53.396 | Q82: 5.029
A83: 5-11классы
A84: Уфа 2021 №80 | B84: Рыба тушеная с овощами | D84: 60/60 | E84: 12.06 | F84: 10.700 | G84: 5.200 | H84: 5.600 | I84: 113 | J84: 0.020 | K84: 1.550 | L84: 0.000 | M84: 0.000 | N84: 9.710 | O84: 0.000 | P84: 11.610 | Q84: 0.340
A85: Дели 2015 №203 | B85: Макаронные изделия отварные с маслом | D85: 180/5 | E85: 32.62 | F85: 6.120 | G85: 5.360 | H85: 34.200 | I85: 224 | J85: 0.080 | K85: 0.000 | L85: 0.110 | M85: 0.979 | N85: 19.740 | O85: 68.410 | P85: 10.170 | Q85: 1.042
A86: Дели 2015 №382 | B86: Какао с молоком | D86: 200 | E86: 3.65 | F86: 3.780 | G86: 0.670 | H86: 26.000 | I86: 125 | J86: 0.020 | K86: 1.330 | L86: 0.000 | M86: 0.012 | N86: 133.330 | O86: 111.110 | P86: 25.565 | Q86: 2.000
B87: Хлеб ржан- пшен,1с | D87: 40 | E87: 1.37 | F87: 2.000 | G87: 0.400 | H87: 18.000 | I87: 88 | J87: 0.028 | K87: 0.000 | L87: 0.000 | M87: 0.216 | N87: 5.520 | O87: 25.440 | P87: 6.000 | Q87: 0.744
B88: Хлеб белый,1с | D88: 30 | E88: 1.41 | F88: 2.280 | G88: 0.240 | H88: 14.760 | I88: 71 | J88: 0.033 | M88: 0.330 | N88: 6.000 | O88: 19.500 | P88: 4.200 | Q88: 0.330
A89: Итого: | E89: =SUM(E84:E88) -> 51.11 | F89: 24.880 | G89: 11.870 | H89: 98.560 | I89: 621 | J89: 0.181 | K89: 2.880 | L89: 0.110 | M89: 1.537 | N89: 174.300 | O89: 224.460 | P89: 57.545 | Q89: 4.456
A90: ФГОС:
A91: Уфа 2021 № 194 | B91: Каша ячневая молочная с маслом | D91: 250/10 | E91: 9.67 | F91: 8.70 | G91: 10.00 | H91: 44.70 | I91: 313.00 | J91: 0.16 | K91: 0.61 | L91: 0.00 | M91: 0.00 | N91: 179.71 | O91: 0.00 | P91: 41.24 | Q91: 1.09
B92: Хлеб ржан- пшен , 1с | D92: 20 | F92: 1.00 | G92: 0.20 | H92: 9.00 | I92: 44.00 | J92: 0.01 | K92: 0.00 | L92: 0.00 | M92: 0.11 | N92: 2.76 | O92: 12.78 | P92: 3.00 | Q92: 0.37
A93: №686,2004 | B93: Чай с сахаром | D93: 200/15 | E93: 2.87 | F93: 0.530 | G93: 0.000 | H93: 9.470 | I93: 40 | J93: 0.000 | K93: 0.270 | L93: 0.000 | M93: 0.000 | N93: 13.600 | O93: 22.130 | P93: 11.730 | Q93: 0.100
B94: Хлеб белый,1с | D94: 30 | E94: 1.41 | F94: 2.280 | G94: 0.240 | H94: 14.760 | I94: 71 | J94: 0.033 | M94: 0.330 | N94: 6.000 | O94: 19.500 | P94: 4.200 | Q94: 0.330
A95: Итого: | E95: =SUM(E90:E94) -> 13.95 | F95: 12.510 | G95: 10.440 | H95: 77.930 | I95: 468 | J95: 0.207 | K95: 0.880 | L95: 0.000 | M95: 0.438 | N95: 202.070 | O95: 54.412 | P95: 60.170 | Q95: 1.892
A96: 5 день 2 неделя
A97: 1-4классы
A98: Уфа 2021 № 210 | B98: Каша молочная "Дружба" | D98: 180/5 | F98: 5.700 | G98: 7.800 | H98: 30.100 | I98: 216 | J98: 0.140 | K98: 0.480 | L98: 0.000 | M98: 0.000 | N98: 114.700 | O98: 0.000 | P98: 33.380 | Q98: 0.720
A99: Уфа 2021 №1,4 | B99: Сыр ( порциями) | D99: 30 | E99: 7.26 | F99: 7.900 | G99: 8.000 | H99: 0.000 | I99: 105 | J99: 0.210 | K99: 0.010 | L99: 0.000 | M99: 0.00 | N99: 300.000 | O99: 0.000 | P99: 16.500 | Q99: 0.210
A100: Дели 2015 №378 | B100: Чай с молоком | D100: 150/50/15 | F100: 1.520 | G100: 1.350 | H100: 15.900 | I100: 81 | J100: 0.040 | K100: 1.330 | L100: 0.160 | M100: 0.000 | N100: 136.600 | O100: 92.800 | P100: 5.400 | Q100: 0.110
B101: Хлеб ржан . пшен.,1с | D101: 20 | E101: 1.37 | F101: 1.000 | G101: 0.200 | H101: 9.000 | I101: 44 | J101: 0.014 | K101: 0.000 | L101: 0.000 | M101: 0.108 | N101: 2.760 | O101: 12.720 | P101: 3.000 | Q101: 0.372
B102: Хлеб белый,1с | D102: 30 | E102: 1.41 | F102: 2.280 | G102: 0.240 | H102: 14.760 | I102: 71 | J102: 0.033 | K102: 0.000 | L102: 0.000 | M102: 0.330 | N102: 6.000 | O102: 19.500 | P102: 4.200 | Q102: 0.330
A103: Итого: | E103: =SUM(E98:E102) -> 10.04 | F103: 18.400 | G103: 17.590 | H103: 69.760 | I103: 517 | J103: 0.437 | K103: 1.820 | L103: 0.160 | M103: 0.438 | N103: 560.060 | O103: 125.020 | P103: 62.480 | Q103: 1.742
A104: 5-11классы
A105: Уфа 2021 №210 | B105: Каша молочная "Дружба" | D105: 180/5 | E105: 13.72 | F105: 5.700 | G105: 7.800 | H105: 30.100 | I105: 216 | J105: 0.140 | K105: 0.480 | L105: 0.000 | M105: 0.000 | N105: 114.700 | O105: 0.000 | P105: 33.380 | Q105: 0.720
A106: Уфа 2021 №1.4 | B106: Сыр ( порциями) | D106: 30 | E106: 17.27 | F106: 7.900 | G106: 8.000 | H106: 0.000 | I106: 105 | J106: 0.210 | K106: 0.010 | L106: 0.000 | M106: 0.000 | N106: 300.000 | O106: 0.000 | P106: 16.500 | Q106: 0.210
B107: Хлеб белый 1 с | D107: 60 | F107: 4.560 | G107: 0.480 | H107: 29.520 | I107: 142 | J107: 0.066 | K107: 0.000 | L107: 0.000 | M107: 0.660 | N107: 12.000 | O107: 39.000 | P107: 8.400 | Q107: 0.660
A108: ДеЛи,2011-544с,№349 | B108: Чай с сахаром | D108: 200/15 | E108: 3.65 | F108: 0.530 | G108: 0.000 | H108: 9.470 | I108: 40 | J108: 0.000 | K108: 0.270 | L108: 0.000 | M108: 0.000 | N108: 13.600 | O108: 22.130 | P108: 11.730 | Q108: 0.100
B109: Хлеб ржано - пшеничный ,1с | D109: 20 | E109: 1.37 | F109: 1.000 | G109: 0.200 | H109: 9.000 | I109: 44 | J109: 0.014 | K109: 0.000 | L109: 0.000 | M109: 0.108 | N109: 2.760 | O109: 12.720 | P109: 3.000 | Q109: 0.372
A110: Итого: | E110: =SUM(E105:E109) -> 36.01 | F110: 19.690 | G110: 16.480 | H110: 78.090 | I110: 547 | J110: 0.430 | K110: 0.760 | L110: 0.000 | M110: 0.768 | N110: 443.060 | O110: 73.850 | P110: 73.010 | Q110: 2.062
A111: ФГОС:
A112: Уфа 2021 № 61 | B112: Суп картофельный с бобовыми и гренками | D112: 300/25 | E112: 5.99 | F112: 9.000 | G112: 5.400 | H112: 38.900 | I112: 253 | J112: 0.240 | K112: 5.590 | L112: 0.000 | M112: 0.000 | N112: 46.410 | O112: 0.000 | P112: 52.310 | Q112: 2.770
B113: Хлеб ржаной- пшеничный , 1 с | D113: 20 | F113: 1.000
A114: Делми 2015 №349 | B114: Чай с сахаром | D114: 200/15 | E114: 3.65 | F114: 0.530 | G114: 0.000 | H114: 9.470 | I114: 44 | J114: 0.014 | K114: 0.000 | L114: 0.000 | M114: 0.108 | N114: 2.760 | O114: 12.720 | P114: 3.000 | Q114: 0.372
B115: Хлеб белый,1с | D115: 30 | E115: 1.41 | F115: 2.280 | G115: 0.240 | H115: 14.760 | I115: 71 | J115: 0.033 | M115: 0.330 | N115: 6.000 | O115: 19.500 | P115: 4.200 | Q115: 0.330
A116: Итого: | E116: =SUM(E112:E115) -> 11.05 | F116: 12.810 | G116: 5.640 | H116: 63.130 | I116: 368 | J116: 0.287 | K116: 5.590 | L116: 0.000 | M116: 0.438 | N116: 55.170 | O116: 32.220 | P116: 59.510 | Q116: 3.472
A117: 6 день 2 неделя
A118: 1-4классы
A120: Дели 2015 №338 | B120: Плоды и ягоды свежие ( яблоки) | D120: 100 | E120: 4.79 | F120: 0.400 | G120: 0.400 | H120: 7.350 | I120: 47 | J120: 0.030 | K120: 8.000 | L120: 0.000 | M120: 0.100 | N120: 16.000 | O120: 11.000 | P120: 9.000 | Q120: 0.030
A121: Дели 2015 №56 | B121: Салат овощной с яблоками | D121: 60 | F121: 3.500 | G121: 6.110 | H121: 9.900 | I121: 124 | J121: 0.050 | K121: 11.310 | L121: 0.000 | M121: 0.4 | N121: 126.880 | O121: 120.410 | P121: 41.330 | Q121: 1.900
A122: Уфа 2021 №7,5 | B122: Пюре из бобых с маслом | D122: 180/9 | F122: 18.600 | G122: 10.000 | H122: 40.400 | I122: 350 | J122: 0.380 | K122: 0.000 | L122: 0.000 | M122: 0.000 | N122: 132.150 | O122: 0.000 | P122: 88.070 | Q122: 5.170
A123: Уфа2021 № 132 | B123: Куры отварные | D123: 90 | E123: 33.19 | F123: 22.600 | G123: 18.900 | H123: 0.300 | I123: 295 | J123: 0.050 | K123: 0.860 | L123: 0.000 | M123: 0.000 | N123: 18.470 | O123: 0.000 | P123: 18.880 | Q123: 1.780
A124: Дели 2015 №377 | B124: Чай с лимоном | D124: 200/15/7 | E124: 1.89 | F124: 0.084 | G124: 0.012 | H124: 15.185 | I124: 62 | J124: 0.003 | K124: 2.800 | L124: 0.000 | M124: 0.014 | N124: 3.250 | O124: 1.540 | P124: 0.840 | Q124: 0.067
B125: Хлеб ржан-пшенич,1с | D125: 20 | E125: 1.37 | F125: 1.000 | G125: 0.200 | H125: 9.000 | I125: 44 | J125: 0.014 | K125: 0.000 | L125: 0.000 | M125: 0.108 | N125: 2.760 | O125: 12.720 | P125: 3.000 | Q125: 0.372
B126: Хлеб белый,1с | D126: 30 | E126: 1.41 | F126: 2.280 | G126: 0.240 | H126: 14.760 | I126: 71 | J126: 0.033 | K126: 0.000 | L126: 0.000 | M126: 0.330 | N126: 6.000 | O126: 19.500 | P126: 4.200 | Q126: 0.330
A127: Итого: | E127: =SUM(E120:E126) -> 42.65 | F127: 48.464 | G127: 35.862 | H127: 96.895 | I127: 993 | J127: 0.560 | K127: 22.970 | L127: 0.000 | M127: 0.552 | N127: 305.510 | O127: 165.170 | P127: 165.320 | Q127: 9.649
A128: 5-11классы
A130: Дели 2015 №338 | B130: Плоды и ягоды свежие ( яблоки ) | D130: 100 | F130: 0.4 | G130: 0.4 | H130: 7.35 | I130: 47 | J130: 0.03 | K130: 8 | L130: 0 | M130: 0.1 | N130: 16 | O130: 11 | P130: 9 | Q130: 0.03
A131: Уфа 2021 №132 | B131: Куры отварные | D131: 100 | F131: 26.1 | G131: 24.6 | H131: 0.3 | I131: 327 | J131: 0.08 | K131: 1.27 | L131: 0 | M131: 0 | N131: 22.58 | O131: 0 | P131: 24.33 | Q131: 2.14
A132: Уфа 2021 №7,5 | B132: Пюре из бобовых с маслом | D132: 180/9 | E132: 8.24 | F132: 18.60 | G132: 10.00 | H132: 40.40 | I132: 350.00 | J132: 0.38 | K132: 0.00 | L132: 0.00 | M132: 0.00 | N132: 132.15 | O132: 0.00 | P132: 88.07 | Q132: 5.17
B133: Хлеб белый , 1 с | D133: 30 | F133: 2.28 | G133: 0.24 | H133: 14.76 | I133: 71.00 | J133: 0.03 | K133: 0.00 | L133: 0.00 | M133: 0.33 | N133: 6.00 | O133: 19.50 | P133: 4.20 | Q133: 0.33
B134: Хлеб ржано- пшен | D134: 20 | F134: 1.00 | G134: 0.20 | H134: 9.00 | I134: 44.00 | J134: 0.01 | K134: 0.00 | L134: 0.00 | M134: 0.11 | N134: 2.76 | O134: 12.72 | P134: 3.00 | Q134: 0.37
A135: №685,2004 | B135: Чай с сахаром | D135: 200/15 | E135: 1.89 | F135: 0.530 | G135: 0.000 | H135: 9.470 | I135: 40 | J135: 0.000 | K135: 0.270 | L135: 0.000 | M135: 0.000 | N135: 13.600 | O135: 22.130 | P135: 11.730 | Q135: 0.100
A136: Итого: | E136: =SUM(E132:E135) -> 10.13 | F136: 48.910 | G136: 35.440 | H136: 81.280 | I136: 879 | J136: 0.537 | K136: 9.540 | L136: 0.000 | M136: 0.538 | N136: 193.090 | O136: 65.350 | P136: 140.330 | Q136: 8.142
